fUST/lending_fUST_20240807
["ID","MTS","AMOUNT","RATE_DAILY","PERIOD"]
[334398583,1723029090629,-2356.09,0.00034794,14]
[334398584,1723029090639,-1016.46,0.00034794,14]
[334398585,1723029090651,-1373.79,0.00034794,14]
[334398586,1723029090663,-219.99473924,0.00034794,14]
[334398587,1723029090675,-27586.24,0.00034794,14]
[334398588,1723029090685,-641.2,0.00034794,14]
[334398589,1723029090695,-551.11,0.00034794,14]
[334398590,1723029090706,-2059.66,0.00034794,14]
[334398591,1723029090717,-884.77,0.00034794,14]
[334398592,1723029090727,-7553.97,0.00034794,14]
[334398593,1723029090736,-1858.24,0.00034794,14]
[334398594,1723029090746,-6001.15,0.00034794,14]
[334398595,1723029090757,-1904.11,0.00034794,14]
[334398596,1723029090768,-3288.86,0.00034794,14]
[334398597,1723029090778,-577.95,0.00034794,14]
[334398598,1723029090788,-1446.23,0.00034794,14]
[334398599,1723029090799,-4804.12,0.00034794,14]
[334398600,1723029090808,-509.19,0.00034794,14]
[334398601,1723029090819,-873.14,0.00034794,14]
[334398602,1723029090830,-3091.7,0.00034794,14]
[334398603,1723029090840,-743.63,0.00034794,14]
[334398604,1723029090851,-1370.13,0.00034794,14]
[334398605,1723029090860,-18095.21,0.00034794,14]
[334398606,1723029090870,-500.0,0.00034794,14]
[334398607,1723029090880,-1609.93,0.00034794,14]
[334398608,1723029090890,-2388.37,0.00034794,14]
[334398609,1723029090899,-803.5,0.00034794,14]
[334398610,1723029090910,-4013.41,0.00034794,14]
[334398611,1723029090919,-602.9,0.00034794,14]
[334398612,1723029090929,-2364.63,0.00034794,14]
[334398613,1723029090940,-629.6,0.00034794,14]
[334398614,1723029090951,-1184.06,0.00034794,14]
[334398615,1723029090961,-500.0,0.00034794,14]
[334398616,1723029090971,-1150.86,0.00034794,14]
[334398617,1723029090981,-602.76,0.00034794,14]
[334398618,1723029090991,-20279.89,0.00034794,14]
[334398619,1723029091004,-647.84192877,0.00034794,14]
[334398620,1723029091014,-1372.29,0.00034794,14]
[334398621,1723029091023,-500.0,0.00034794,14]
[334398622,1723029091034,-11638.4,0.00034794,14]
[334398623,1723029091045,-500.0,0.00034794,14]
[334398624,1723029091056,-500.0,0.00034794,14]
[334398625,1723029091065,-500.0,0.00034794,14]
[334398626,1723029091075,-1433.62,0.00034794,14]
[334398627,1723029091086,-500.0,0.00034794,14]
[334398628,1723029091097,-761.0,0.00034794,14]
[334398629,1723029091107,-454.11369897,0.00034794,14]
[334398630,1723029091117,-1750.38,0.00034794,14]
[334398631,1723029091127,-512.68,0.00034794,14]
[334398632,1723029091137,-746.77,0.00034794,14]
[334398633,1723029091147,-11428.84,0.00034794,14]
[334398634,1723029091156,-1433.26,0.00034794,14]
[334398635,1723029091166,-2496.12,0.00034794,14]
[334398636,1723029091176,-2975.06,0.00034794,14]
[334398637,1723029091187,-2356.96,0.00034794,14]
[334398638,1723029091197,-3825.94,0.00034794,14]
[334398639,1723029091208,-1460.03,0.00034794,14]
[334398640,1723029091218,-500.0,0.00034794,14]
[334398641,1723029091228,-1424.73,0.00034794,14]
[334398642,1723029091237,-10865.29,0.00034794,14]
[334398643,1723029091247,-2785.33,0.00034794,14]
[334398644,1723029091257,-500.0,0.00034794,14]
[334398645,1723029091266,-500.0,0.00034794,14]
[334398646,1723029091276,-536.47,0.00034794,14]
[334398647,1723029091285,-973.08,0.00034794,14]
[334398648,1723029091294,-500.0,0.00034794,14]
[334398649,1723029091303,-795.32,0.00034794,14]
[334398650,1723029091313,-6834.28,0.00034794,14]
[334398651,1723029091323,-1637.95,0.00034794,14]
[334398652,1723029091333,-500.0,0.00034794,14]
[334398653,1723029091342,-1190.28,0.00034794,14]
[334398654,1723029091353,-500.0,0.00034794,14]
[334398655,1723029091363,-5590.89,0.00034794,14]
[334398656,1723029091372,-502.77,0.00034794,14]
[334398657,1723029091382,-2520.26,0.00034794,14]
[334398658,1723029091392,-1612.65,0.00034794,14]
[334398659,1723029091402,-1790.94,0.00034794,14]
[334398660,1723029091413,-500.0,0.00034794,14]
[334398661,1723029091423,-500.0,0.00034794,14]
[334398662,1723029091433,-1565.92,0.00034794,14]
[334398663,1723029091443,-739.25,0.00034794,14]
[334398664,1723029091453,-500.0,0.00034794,14]
[334398665,1723029091463,-728.33,0.00034794,14]
[334398666,1723029091473,-709.69,0.00034794,14]
[334398667,1723029091483,-656.7,0.00034794,14]
[334398668,1723029091492,-2157.08,0.00034794,14]
[334398669,1723029091502,-500.0,0.00034794,14]
[334398670,1723029091511,-2547.19,0.00034794,14]
[334398671,1723029091521,-1757.34,0.00034794,14]
[334398672,1723029091530,-1214.45,0.00034794,14]
[334398673,1723029091540,-1138.49,0.00034794,14]
[334398674,1723029091550,-943.14,0.00034794,14]
[334398675,1723029091560,-814.59,0.00034794,14]
[334398676,1723029091570,-500.0,0.00034794,14]
[334398677,1723029091580,-1713.75,0.00034794,14]
[334398678,1723029091589,-500.0,0.00034794,14]
[334398679,1723029091600,-849.27,0.00034794,14]
[334398680,1723029091609,-1000.0,0.000348,40]
[334398681,1723029091619,-1000.0,0.000348,3]
[334398682,1723029091628,-400.0,0.00034842,5]
[334398683,1723029091638,-400.0,0.00034842,5]
[334398684,1723029091647,-400.0,0.00034842,5]
[334398685,1723029091657,-400.0,0.00034842,5]
[334398686,1723029091666,-27431.82189799,0.000349,2]
[334398687,1723029091675,-159.341654,0.00034995,2]
[334398688,1723029091685,-5000.0,0.00035,35]
[334398689,1723029091694,-10376.27829574,0.00035,2]
[334398690,1723029091703,-220.61,0.00035,14]
[334398691,1723029091712,-3245.98,0.00035,14]
[334398692,1723029091722,-1680.0,0.00035,60]
[334398693,1723029091731,-2000.0,0.00035066,14]
[334398694,1723029091741,-1053.34,0.00035068,14]
[334398695,1723029091750,-1009.34,0.00035068,14]
[334398696,1723029091759,-2387.52,0.00035068,14]
[334398697,1723029091769,-500.0,0.00035068,14]
[334398698,1723029091778,-500.0,0.00035068,14]
[334398699,1723029091787,-540.78,0.00035068,14]
[334398700,1723029091797,-558.5,0.00035068,14]
[334398701,1723029091807,-2183.56,0.00035068,14]
[334398702,1723029091816,-635.93,0.00035068,14]
[334398703,1723029091825,-614.31,0.00035068,14]
[334398704,1723029091834,-500.0,0.00035068,14]
[334398705,1723029091844,-1090.48,0.00035068,14]
[334398706,1723029091855,-500.0,0.00035068,14]
[334398707,1723029091864,-983.41,0.00035068,14]
[334398708,1723029091874,-500.0,0.00035068,14]
[334398709,1723029091884,-1237.41,0.00035068,14]
[334398710,1723029091894,-500.0,0.00035068,14]
[334398711,1723029091904,-901.85,0.00035068,14]
[334398712,1723029091913,-500.0,0.00035068,14]
[334398713,1723029091923,-500.0,0.00035068,14]
[334398714,1723029091933,-705.74,0.00035068,14]
[334398715,1723029091942,-867.95,0.00035068,14]
[334398716,1723029091952,-890.32,0.00035068,14]
[334398717,1723029091961,-500.0,0.00035068,14]
[334398718,1723029091971,-208.19628881,0.00035068,14]
[334398719,1723029091981,-641.8,0.00035068,14]
[334398720,1723029091991,-500.0,0.00035068,14]
[334398721,1723029092002,-663.8,0.00035068,14]
[334398722,1723029092014,-538.72317165,0.00035068,14]
[334398723,1723029092023,-500.0,0.00035068,14]
[334398724,1723029092033,-610.25247139,0.00035068,14]
[334398725,1723029092043,-500.0,0.00035068,14]
[334398726,1723029092052,-500.0,0.00035068,14]
[334398727,1723029092062,-500.0,0.00035068,14]
[334398728,1723029092071,-500.0,0.00035068,14]
[334398729,1723029092081,-610.03,0.00035068,14]
[334398730,1723029092090,-500.0,0.00035068,14]
[334398731,1723029092103,-500.0,0.00035068,14]
[334398732,1723029092112,-1049.44,0.00035068,14]
[334398733,1723029092121,-658.92,0.00035068,14]
[334398734,1723029092236,-634.91,0.00035068,14]
[334398735,1723029092246,-500.0,0.00035068,14]
[334398736,1723029092258,-618.32,0.00035068,14]
[334398737,1723029092268,-841.16,0.00035068,14]
[334398738,1723029092278,-500.0,0.00035068,14]
[334398739,1723029092288,-508.16,0.00035068,14]
[334398740,1723029092298,-543.25,0.00035068,14]
[334398741,1723029092309,-2103.08,0.00035068,14]
[334398742,1723029092320,-500.0,0.00035068,14]
[334398743,1723029092331,-1135.85,0.00035068,14]
[334398744,1723029092341,-500.0,0.00035068,14]
[334398745,1723029092352,-500.0,0.00035068,14]
[334398746,1723029092362,-726.44,0.00035068,14]
[334398747,1723029092371,-606.85,0.00035068,14]
[334398748,1723029092381,-665.91,0.00035068,14]
[334398749,1723029092391,-782.36,0.00035068,14]
[334398750,1723029092402,-500.0,0.00035068,14]
[334398751,1723029092414,-653.76,0.00035068,14]
[334398752,1723029092426,-500.0,0.00035068,14]
[334398753,1723029092437,-500.0,0.00035068,14]
[334398754,1723029092449,-572.65,0.00035068,14]
[334398755,1723029092462,-552.06,0.00035068,14]
[334398756,1723029092473,-723.92,0.00035068,14]
[334398757,1723029092485,-2180.22,0.00035068,14]
[334398758,1723029092495,-531.95,0.00035068,14]
[334398759,1723029092506,-500.0,0.00035068,14]
[334398760,1723029092517,-738.14,0.00035068,14]
[334398761,1723029092528,-500.0,0.00035068,14]
[334398762,1723029092540,-500.0,0.00035068,14]
[334398763,1723029092549,-500.0,0.00035068,14]
[334398764,1723029092561,-500.0,0.00035068,14]
[334398765,1723029092571,-500.0,0.00035068,14]
[334398766,1723029092582,-500.0,0.00035068,14]
[334398767,1723029092592,-561.59,0.00035068,14]
[334398768,1723029092602,-526.38,0.00035068,14]
[334398769,1723029092615,-500.0,0.00035068,14]
[334398770,1723029092631,-655.78,0.00035068,14]
[334398771,1723029092641,-500.0,0.00035068,14]
[334398772,1723029092650,-997.18,0.00035068,14]
[334398773,1723029092660,-1854.37,0.00035068,14]
[334398774,1723029092672,-500.0,0.00035068,14]
[334398775,1723029092683,-200.0,0.00035068,7]
[334398776,1723029092694,-1754.86,0.00035068,14]
[334398777,1723029092704,-500.0,0.00035068,14]
[334398778,1723029092715,-637.98,0.00035068,14]
[334398779,1723029092726,-2280.75,0.00035068,14]
[334398780,1723029092735,-524.01,0.00035068,14]
[334398781,1723029092746,-500.0,0.00035068,14]
[334398782,1723029092756,-500.0,0.00035068,14]
[334398783,1723029092766,-500.0,0.00035068,14]
[334398784,1723029092775,-528.8,0.00035068,14]
[334398785,1723029092786,-500.0,0.00035068,14]
[334398786,1723029092795,-1498.25,0.00035068,14]
[334398787,1723029092804,-693.96,0.00035068,14]
[334398788,1723029092814,-500.0,0.00035068,14]
[334398789,1723029092825,-500.0,0.00035068,14]
[334398790,1723029092837,-627.54,0.00035068,14]
[334398791,1723029092848,-3342.3,0.00035068,14]
[334398792,1723029092859,-531.99,0.00035068,14]
[334398793,1723029092868,-500.0,0.00035068,14]
[334398794,1723029092877,-1236.8,0.00035068,14]
[334398795,1723029092888,-500.0,0.00035068,14]
[334398796,1723029092898,-728.37,0.00035068,14]
[334398797,1723029092907,-1161.27,0.00035068,14]
[334398798,1723029092917,-500.0,0.00035068,14]
[334398799,1723029092929,-938.86,0.00035068,14]
[334398800,1723029092940,-3031.19,0.00035068,14]
[334398801,1723029092951,-500.0,0.00035068,14]
[334398802,1723029092963,-500.0,0.00035068,14]
[334398803,1723029092974,-1919.23,0.00035068,14]
[334398804,1723029092985,-1225.39,0.00035068,14]
[334398805,1723029092997,-884.22,0.00035068,14]
[334398806,1723029093013,-222.1057213,0.00035068,14]
[334398807,1723029093023,-1075.22,0.00035068,14]
[334398808,1723029093032,-300.00203262,0.00035068,14]
[334398809,1723029093046,-799.55,0.00035068,14]
[334398810,1723029093057,-665.15,0.00035068,14]
[334398811,1723029093068,-578.83,0.00035068,14]
[334398812,1723029093079,-500.0,0.00035068,14]
[334398813,1723029093090,-500.0,0.00035068,14]
[334398814,1723029093102,-500.0,0.00035068,14]
[334398815,1723029093112,-1407.14,0.00035068,14]
[334398816,1723029093121,-538.06,0.00035068,14]
[334398817,1723029093131,-500.0,0.00035068,14]
[334398818,1723029093141,-1237.71,0.00035068,14]
[334398819,1723029093150,-3398.02,0.00035068,14]
[334398820,1723029093160,-2584.23,0.00035068,14]
[334398821,1723029093178,-798.6,0.00035068,14]
[334398822,1723029093199,-604.27,0.00035068,14]
[334398823,1723029093217,-500.0,0.00035068,14]
[334398824,1723029093237,-500.0,0.00035068,14]
[334398825,1723029093256,-500.0,0.00035068,2]
[334398826,1723029093274,-500.0,0.00035068,14]
[334398827,1723029093293,-500.0,0.00035068,14]
[334398828,1723029093307,-500.0,0.00035068,14]
[334398829,1723029093325,-1456.08,0.00035068,14]
[334398830,1723029093345,-968.66,0.00035068,14]
[334398831,1723029093363,-500.0,0.00035068,14]
[334398832,1723029093380,-1104.57,0.00035068,14]
[334398833,1723029093396,-785.13,0.00035068,14]
[334398834,1723029093413,-1000.35,0.00035068,14]
[334398835,1723029093429,-678.62,0.00035068,14]
[334398836,1723029093445,-2102.23,0.00035068,14]
[334398837,1723029093460,-1724.83,0.00035068,14]
[334398838,1723029093477,-786.56,0.00035068,14]
[334398839,1723029093493,-1026.47,0.00035068,14]
[334398840,1723029093508,-2410.79,0.00035068,14]
[334398841,1723029093522,-500.0,0.00035068,14]
[334398842,1723029093538,-1027.92,0.00035068,14]
[334398843,1723029093555,-572.28,0.00035068,14]
[334398844,1723029093569,-500.0,0.00035068,14]
[334398845,1723029093584,-827.4,0.00035068,14]
[334398846,1723029093600,-500.0,0.00035068,14]
[334398847,1723029093617,-1638.94,0.00035068,14]
[334398848,1723029093634,-186.96708576,0.00035068,14]
[334398849,1723029093649,-2976.45,0.00035068,14]
[334398850,1723029093664,-454.13768407,0.00035068,14]
[334398851,1723029093679,-728.06,0.00035068,14]
[334398852,1723029093694,-500.0,0.00035068,14]
[334398853,1723029093709,-1275.04,0.00035068,14]
[334398854,1723029093724,-500.0,0.00035068,14]
[334398855,1723029093740,-1187.93,0.00035068,14]
[334398856,1723029093754,-645.93,0.00035068,14]
[334398857,1723029093770,-1020.1,0.00035068,14]
[334398858,1723029093785,-500.0,0.00035068,14]
[334398859,1723029093802,-500.0,0.00035068,14]
[334398860,1723029093818,-581.74,0.00035068,14]
[334398861,1723029093834,-500.0,0.00035068,14]
[334398862,1723029093849,-720.42,0.00035068,14]
[334398863,1723029093865,-923.4,0.00035068,14]
[334398864,1723029093879,-500.0,0.00035068,14]
[334398865,1723029093894,-534.66,0.00035068,14]
[334398866,1723029093910,-548.72,0.00035068,14]
[334398867,1723029093925,-671.94,0.00035068,14]
[334398868,1723029093942,-2664.41,0.00035068,14]
[334398869,1723029093957,-1512.23,0.00035068,14]
[334398870,1723029093972,-1144.37,0.00035068,14]
[334398871,1723029093989,-518.05,0.00035068,14]
[334398872,1723029094008,-1021.34,0.00035068,14]
[334398873,1723029094024,-500.0,0.00035068,14]
[334398874,1723029094040,-2148.85,0.00035068,14]
[334398875,1723029094057,-500.0,0.00035068,14]
[334398876,1723029094074,-1093.31,0.00035068,14]
[334398877,1723029094094,-500.0,0.00035068,14]
[334398878,1723029094111,-2807.44,0.00035068,14]
[334398879,1723029094126,-500.0,0.00035068,14]
[334398880,1723029094143,-500.0,0.00035068,14]
[334398881,1723029094159,-500.0,0.00035068,14]
[334398882,1723029094174,-500.0,0.00035068,14]
[334398883,1723029094189,-647.5,0.00035068,14]
[334398884,1723029094205,-972.5,0.00035068,14]
[334398885,1723029094222,-2896.75,0.00035068,14]
[334398886,1723029094239,-836.81,0.00035068,14]
[334398887,1723029094255,-621.33,0.00035068,14]
[334398888,1723029094272,-500.0,0.00035068,14]
[334398889,1723029094288,-877.3,0.00035068,14]
[334398890,1723029094304,-500.0,0.00035068,14]
[334398891,1723029094319,-646.55,0.00035068,14]
[334398892,1723029094336,-519.26,0.00035068,14]
[334398893,1723029094352,-811.6,0.00035068,14]
[334398894,1723029094368,-3787.31,0.00035068,14]
[334398895,1723029094385,-676.38,0.00035068,14]
[334398896,1723029094401,-1713.3,0.00035068,14]
[334398897,1723029094418,-500.0,0.00035068,14]
[334398898,1723029094434,-710.82,0.00035068,14]
[334398899,1723029094450,-3403.09,0.00035068,14]
[334398900,1723029094466,-500.0,0.00035068,14]
[334398901,1723029094482,-8008.66,0.00035068,14]
[334398902,1723029094498,-1695.73,0.00035068,14]
[334398903,1723029094514,-500.0,0.00035068,14]
[334398904,1723029094531,-2652.65,0.00035068,14]
[334398905,1723029094547,-500.0,0.00035068,14]
[334398906,1723029094565,-676.41,0.00035068,14]
[334398907,1723029094769,-4726.18,0.00035068,14]
[334398908,1723029094780,-631.77,0.00035068,14]
[334398909,1723029094791,-524.76,0.00035068,14]
[334398910,1723029094801,-765.56,0.00035068,14]
[334398911,1723029094811,-500.0,0.00035068,14]
[334398912,1723029094819,-500.0,0.00035068,14]
[334398913,1723029094829,-596.92,0.00035068,14]
[334398914,1723029094840,-2772.04,0.00035068,14]
[334398915,1723029094851,-872.47,0.00035068,14]
[334398916,1723029094861,-500.0,0.00035068,14]
[334398917,1723029094870,-500.0,0.00035068,14]
[334398918,1723029094882,-2850.24,0.00035068,14]
[334398919,1723029094891,-2368.38,0.00035068,14]
[334398920,1723029094902,-918.69,0.00035068,14]
[334398921,1723029094911,-1182.98,0.00035068,14]
[334398922,1723029094921,-500.0,0.00035068,14]
[334398923,1723029094931,-787.24,0.00035068,14]
[334398924,1723029094941,-500.0,0.00035068,14]
[334398925,1723029094951,-500.0,0.00035068,14]
[334398926,1723029094961,-500.0,0.00035068,14]
[334398927,1723029094971,-748.79,0.00035068,14]
[334398928,1723029094983,-1732.44,0.00035068,14]
[334398929,1723029094993,-1373.61,0.00035068,14]
[334398930,1723029095006,-500.0,0.00035068,14]
[334398931,1723029095019,-1008.03,0.00035068,14]
[334398932,1723029095032,-705.51,0.00035068,14]
[334398933,1723029095045,-500.0,0.00035068,14]
[334398934,1723029095057,-5624.94,0.00035068,14]
[334398935,1723029095068,-4673.31,0.00035068,14]
[334398936,1723029095079,-2102.82,0.00035068,14]
[334398937,1723029095092,-683.38,0.00035068,14]
[334398938,1723029095104,-500.0,0.00035068,14]
[334398939,1723029095114,-500.0,0.00035068,14]
[334398940,1723029095123,-500.0,0.00035068,14]
[334398941,1723029095133,-500.0,0.00035068,14]
[334398942,1723029095143,-1201.25,0.00035068,14]
[334398943,1723029095154,-5296.6,0.00035068,14]
[334398944,1723029095164,-500.0,0.00035068,14]
[334398945,1723029095175,-500.0,0.00035068,14]
[334398946,1723029095186,-754.45,0.00035068,14]
[334398947,1723029095198,-6120.77,0.00035068,14]
[334398948,1723029095209,-4115.44,0.00035068,14]
[334398949,1723029095220,-500.0,0.00035068,14]
[334398950,1723029095232,-2356.09,0.00035068,14]
[334398951,1723029095241,-1016.46,0.00035068,14]
[334398952,1723029095250,-1373.79,0.00035068,14]
[334398953,1723029095260,-27586.24,0.00035068,14]
[334398954,1723029095271,-641.2,0.00035068,14]
[334398955,1723029095281,-551.11,0.00035068,14]
[334398956,1723029095291,-2059.66,0.00035068,14]
[334398957,1723029095301,-884.77,0.00035068,14]
[334398958,1723029095311,-7553.97,0.00035068,14]
[334398959,1723029095320,-1858.24,0.00035068,14]
[334398960,1723029095329,-6001.15,0.00035068,14]
[334398961,1723029095339,-1904.11,0.00035068,14]
[334398962,1723029095349,-3288.86,0.00035068,14]
[334398963,1723029095360,-577.95,0.00035068,14]
[334398964,1723029095369,-1446.23,0.00035068,14]
[334398965,1723029095379,-4804.12,0.00035068,14]
[334398966,1723029095389,-509.19,0.00035068,14]
[334398967,1723029095399,-873.14,0.00035068,14]
[334398968,1723029095408,-3091.7,0.00035068,14]
[334398969,1723029095418,-743.63,0.00035068,14]
[334398970,1723029095428,-1370.13,0.00035068,14]
[334398971,1723029095438,-18095.21,0.00035068,14]
[334398972,1723029095450,-500.0,0.00035068,14]
[334398973,1723029095463,-1609.93,0.00035068,14]
[334398974,1723029095473,-2388.37,0.00035068,14]
[334398975,1723029095484,-803.5,0.00035068,14]
[334398976,1723029095495,-4013.41,0.00035068,14]
[334398977,1723029095504,-602.9,0.00035068,14]
[334398978,1723029095516,-2364.63,0.00035068,14]
[334398979,1723029095528,-629.6,0.00035068,14]
[334398980,1723029095539,-1184.06,0.00035068,14]
[334398981,1723029095550,-500.0,0.00035068,14]
[334398982,1723029095561,-1150.86,0.00035068,14]
[334398983,1723029095571,-602.76,0.00035068,14]
[334398984,1723029095582,-20279.89,0.00035068,14]
[334398985,1723029095594,-1372.29,0.00035068,14]
[334398986,1723029095605,-500.0,0.00035068,14]
[334398987,1723029095615,-11638.4,0.00035068,14]
[334398988,1723029095625,-500.0,0.00035068,14]
[334398989,1723029095635,-621.49489795,0.00035068,14]
[334398990,1723029095645,-500.0,0.00035068,14]
[334398991,1723029095655,-1433.62,0.00035068,14]
[334398992,1723029095665,-500.0,0.00035068,14]
[334398993,1723029095675,-761.0,0.00035068,14]
[334398994,1723029095686,-1750.38,0.00035068,14]
[334398995,1723029095697,-512.68,0.00035068,14]
[334398996,1723029095709,-746.77,0.00035068,14]
[334398997,1723029095720,-11428.84,0.00035068,14]
[334398998,1723029095730,-1433.26,0.00035068,14]
[334398999,1723029095739,-2496.12,0.00035068,14]
[334399000,1723029095749,-2975.06,0.00035068,14]
[334399001,1723029095758,-2356.96,0.00035068,14]
[334399002,1723029095768,-3825.94,0.00035068,14]
[334399003,1723029095778,-1460.03,0.00035068,14]
[334399004,1723029095788,-500.0,0.00035068,14]
[334399005,1723029095798,-1424.73,0.00035068,14]
[334399006,1723029095808,-10865.29,0.00035068,14]
[334399007,1723029095818,-2785.33,0.00035068,14]
[334399008,1723029095827,-500.0,0.00035068,14]
[334399009,1723029095838,-500.0,0.00035068,14]
[334399010,1723029095848,-536.47,0.00035068,14]
[334399011,1723029095860,-973.08,0.00035068,14]
[334399012,1723029095869,-795.32,0.00035068,14]
[334399013,1723029095880,-6834.28,0.00035068,14]
[334399014,1723029095891,-500.0,0.00035068,14]
[334399015,1723029095901,-1637.95,0.00035068,14]
[334399016,1723029095911,-500.0,0.00035068,14]
[334399017,1723029095921,-500.0,0.00035068,14]
[334399018,1723029095932,-1190.28,0.00035068,14]
[334399019,1723029095943,-5590.89,0.00035068,14]
[334399020,1723029095955,-502.77,0.00035068,14]
[334399021,1723029095966,-2520.26,0.00035068,14]
[334399022,1723029095976,-1612.65,0.00035068,14]
[334399023,1723029095986,-1790.94,0.00035068,14]
[334399024,1723029095997,-500.0,0.00035068,14]
[334399025,1723029096008,-500.0,0.00035068,14]
[334399026,1723029096018,-1565.92,0.00035068,14]
[334399027,1723029096028,-739.25,0.00035068,14]
[334399028,1723029096039,-500.0,0.00035068,14]
[334399029,1723029096049,-728.33,0.00035068,14]
[334399030,1723029096060,-709.69,0.00035068,14]
[334399031,1723029096069,-656.7,0.00035068,14]
[334399032,1723029096078,-2157.08,0.00035068,14]
[334399033,1723029096090,-500.0,0.00035068,14]
[334399034,1723029096099,-2547.19,0.00035068,14]
[334399035,1723029096116,-1757.34,0.00035068,14]
[334399036,1723029096126,-1138.49,0.00035068,14]
[334399037,1723029096135,-1214.45,0.00035068,14]
[334399038,1723029096145,-943.14,0.00035068,14]
[334399039,1723029096155,-814.59,0.00035068,14]
[334399040,1723029096164,-500.0,0.00035068,14]
[334399041,1723029096175,-1713.75,0.00035068,14]
[334399042,1723029096184,-150.0,0.00035073,5]
[334399043,1723029096193,-817.517819,0.00035136,2]
[334399044,1723029096203,-769.01714,0.00035136,2]
[334399045,1723029096212,-176.508552,0.00035136,2]
[334399046,1723029096222,-719.23681,0.00035136,2]
[334399047,1723029096232,-756.969634,0.00035136,2]
[334399048,1723029096243,-271.4386735,0.00035263,2]
[334399049,1723029096252,-271.4386735,0.00035263,2]
[334399050,1723029096262,-271.4386735,0.00035263,2]
[334399051,1723029096271,-271.4386735,0.00035263,2]
[334399052,1723029096283,-271.4386735,0.00035263,2]
[334399053,1723029096295,-650.265797,0.00035263,2]
[334399054,1723029096306,-151.0,0.000353,15]
[334399055,1723029096317,-151.0,0.000353,15]
[334399056,1723029096327,-1450.68548168,0.0003534,14]
[334399057,1723029096337,-1053.34,0.00035342,14]
[334399058,1723029096348,-1009.34,0.00035342,14]
[334399059,1723029096359,-2387.52,0.00035342,14]
[334399060,1723029096369,-586.86615114,0.00035342,14]
[334399061,1723029096378,-500.0,0.00035342,14]
[334399062,1723029096388,-540.78,0.00035342,14]
[334399063,1723029096398,-558.5,0.00035342,14]
[334399064,1723029096408,-2183.56,0.00035342,14]
[334399065,1723029096419,-635.93,0.00035342,14]
[334399066,1723029096429,-614.31,0.00035342,14]
[334399067,1723029096438,-500.0,0.00035342,14]
[334399068,1723029096450,-1090.48,0.00035342,14]
[334399069,1723029096459,-500.0,0.00035342,14]
[334399070,1723029096469,-983.41,0.00035342,14]
[334399071,1723029096480,-503.86144678,0.00035342,14]
[334399072,1723029096491,-1237.41,0.00035342,14]
[334399073,1723029096503,-500.0,0.00035342,14]
[334399074,1723029096513,-901.85,0.00035342,14]
[334399075,1723029096523,-500.0,0.00035342,14]
[334399076,1723029096534,-500.0,0.00035342,14]
[334399077,1723029096543,-705.74,0.00035342,14]
[334399078,1723029096552,-867.95,0.00035342,14]
[334399079,1723029096561,-890.32,0.00035342,14]
[334399080,1723029096571,-500.0,0.00035342,14]
[334399081,1723029096579,-641.8,0.00035342,14]
[334399082,1723029096588,-500.0,0.00035342,14]